[Event "NK 2022"]
[Site "Groningen, Netherlands"]
[Date "2022.12.30"]
[Round "18.1"]
[White "Kevlishvili, Robby"]
[Black "L'Ami, Erwin"]
[Result "0-1"]
[TimeControl "40/90; 30 minutes + increment 30 seconds from start"]
[WhiteTitle "GM"]
[BlackTitle "GM"]
[WhiteFideId "1040634"]
[BlackFideId "1007998"]
[WhiteElo "2530"]
[BlackElo "2627"]

1. e4 {[%clk 00:25:18]} {[%emt 00:00:02]} e5 {[%clk 00:25:19]} {[%emt
00:00:02]} 2. Nf3 {[%clk 00:25:26]} {[%emt 00:00:02]} Nc6 {[%clk 00:25:26]}
{[%emt 00:00:02]} 3. Bb5 {[%clk 00:25:33]} {[%emt 00:00:03]} a6 {[%clk
00:25:34]} {[%emt 00:00:02]} 4. Ba4 {[%clk 00:25:41]} {[%emt 00:00:02]} Nf6
{[%clk 00:25:39]} {[%emt 00:00:05]} 5. O-O {[%clk 00:25:47]} {[%emt 00:00:04]}
Be7 {[%clk 00:25:48]} {[%emt 00:00:02]} 6. Re1 {[%clk 00:25:52]} {[%emt
00:00:04]} b5 {[%clk 00:25:56]} {[%emt 00:00:02]} 7. Bb3 {[%clk 00:25:57]}
{[%emt 00:00:05]} d6 {[%clk 00:26:05]} {[%emt 00:00:02]} 8. c3 {[%clk
00:26:03]} {[%emt 00:00:04]} O-O {[%clk 00:26:11]} {[%emt 00:00:03]} 9. d4
{[%clk 00:26:10]} {[%emt 00:00:04]} Bg4 {[%clk 00:25:28]} {[%emt 00:00:52]} 10.
Be3 {[%clk 00:26:17]} {[%emt 00:00:03]} exd4 {[%clk 00:24:53]} {[%emt
00:00:46]} 11. cxd4 {[%clk 00:26:25]} {[%emt 00:00:02]} d5 {[%clk 00:25:01]}
{[%emt 00:00:02]} 12. e5 {[%clk 00:26:26]} {[%emt 00:00:09]} Ne4 {[%clk
00:25:09]} {[%emt 00:00:02]} 13. h3 {[%clk 00:26:14]} {[%emt 00:00:22]} Bh5
{[%clk 00:24:47]} {[%emt 00:00:32]} 14. Nbd2 {[%clk 00:26:07]} {[%emt
00:00:17]} Nxd2 {[%clk 00:23:26]} {[%emt 00:01:31]} 15. Qxd2 {[%clk 00:26:14]}
{[%emt 00:00:04]} Qd7 {[%clk 00:22:22]} {[%emt 00:01:14]} 16. Rec1 {[%clk
00:20:43]} {[%emt 00:05:40]} Nd8 {[%clk 00:18:49]} {[%emt 00:03:43]} 17. Ne1
{[%clk 00:20:34]} {[%emt 00:00:19]} c6 {[%clk 00:17:34]} {[%emt 00:01:25]} 18.
Nd3 {[%clk 00:19:32]} {[%emt 00:01:11]} Bg6 {[%clk 00:17:14]} {[%emt 00:00:30]}
19. f4 {[%clk 00:18:44]} {[%emt 00:00:59]} Bxd3 {[%clk 00:15:28]} {[%emt
00:01:56]} 20. Qxd3 {[%clk 00:18:52]} {[%emt 00:00:02]} f5 {[%clk 00:15:34]}
{[%emt 00:00:04]} 21. a4 {[%clk 00:18:13]} {[%emt 00:00:50]} Rc8 {[%clk
00:13:53]} {[%emt 00:01:51]} 22. axb5 {[%clk 00:17:51]} {[%emt 00:00:32]} axb5
{[%clk 00:14:01]} {[%emt 00:00:02]} 23. Bd1 {[%clk 00:17:00]} {[%emt 00:01:01]}
Ne6 {[%clk 00:12:07]} {[%emt 00:02:03]} 24. Bf3 {[%clk 00:17:04]} {[%emt
00:00:06]} g6 {[%clk 00:12:01]} {[%emt 00:00:17]} 25. Kh2 {[%clk 00:16:41]}
{[%emt 00:00:33]} Kh8 {[%clk 00:11:21]} {[%emt 00:00:49]} 26. Rc2 {[%clk
00:13:13]} {[%emt 00:03:38]} Ra8 {[%clk 00:11:02]} {[%emt 00:00:28]} 27. Rac1
{[%clk 00:12:22]} {[%emt 00:01:01]} Ra6 {[%clk 00:11:10]} {[%emt 00:00:03]} 28.
Qb3 {[%clk 00:12:17]} {[%emt 00:00:15]} Rd8 {[%clk 00:10:33]} {[%emt 00:00:47]}
29. Rc3 {[%clk 00:10:40]} {[%emt 00:01:46]} Ng7 {[%clk 00:08:47]} {[%emt
00:01:56]} 30. Qc2 {[%clk 00:10:01]} {[%emt 00:00:50]} Rc8 {[%clk 00:08:50]}
{[%emt 00:00:07]} 31. Be2 {[%clk 00:09:47]} {[%emt 00:00:23]} Rb6 {[%clk
00:08:51]} {[%emt 00:00:10]} 32. Ra1 {[%clk 00:09:47]} {[%emt 00:00:10]} Ne6
{[%clk 00:08:33]} {[%emt 00:00:27]} 33. Qd3 {[%clk 00:09:03]} {[%emt 00:00:55]}
Rb7 {[%clk 00:08:29]} {[%emt 00:00:14]} 34. Bf3 {[%clk 00:08:48]} {[%emt
00:00:24]} Rb6 {[%clk 00:08:12]} {[%emt 00:00:27]} 35. Rcc1 {[%clk 00:08:48]}
{[%emt 00:00:10]} Rb7 {[%clk 00:07:54]} {[%emt 00:00:28]} 36. Ra6 {[%clk
00:08:42]} {[%emt 00:00:16]} Rbc7 {[%clk 00:06:59]} {[%emt 00:01:04]} 37. Rca1
{[%clk 00:08:18]} {[%emt 00:00:34]} Rb7 {[%clk 00:07:00]} {[%emt 00:00:09]} 38.
Ra8 {[%clk 00:08:18]} {[%emt 00:00:11]} Rbc7 {[%clk 00:07:05]} {[%emt
00:00:05]} 39. Qc2 {[%clk 00:07:36]} {[%emt 00:00:51]} Bf8 {[%clk 00:06:28]}
{[%emt 00:00:47]} 40. g4 {[%clk 00:07:07]} {[%emt 00:00:39]} Ng7 {[%clk
00:04:50]} {[%emt 00:01:48]} 41. Kg3 {[%clk 00:07:11]} {[%emt 00:00:06]} Be7
{[%clk 00:04:56]} {[%emt 00:00:04]} 42. R1a6 {[%clk 00:05:47]} {[%emt
00:01:35]} h6 {[%clk 00:04:24]} {[%emt 00:00:42]} 43. b3 {[%clk 00:04:42]}
{[%emt 00:01:15]} Kh7 {[%clk 00:04:21]} {[%emt 00:00:12]} 44. Bd2 {[%clk
00:04:12]} {[%emt 00:00:41]} b4 {[%clk 00:03:29]} {[%emt 00:01:02]} 45. Be3
{[%clk 00:03:49]} {[%emt 00:00:32]} h5 {[%clk 00:02:57]} {[%emt 00:00:42]} 46.
Ra1 {[%clk 00:03:04]} {[%emt 00:00:56]} Rxa8 {[%clk 00:01:21]} {[%emt
00:01:46]} 47. Rxa8 {[%clk 00:03:12]} {[%emt 00:00:02]} Ra7 {[%clk 00:01:21]}
{[%emt 00:00:10]} 48. Rxa7 {[%clk 00:02:30]} {[%emt 00:00:52]} Qxa7 {[%clk
00:01:30]} {[%emt 00:00:01]} 49. Qxc6 {[%clk 00:02:04]} {[%emt 00:00:36]} Qa2
{[%clk 00:01:19]} {[%emt 00:00:21]} 50. Bf2 {[%clk 00:01:29]} {[%emt 00:00:45]}
hxg4 {[%clk 00:00:41]} {[%emt 00:00:48]} 51. hxg4 {[%clk 00:01:12]} {[%emt
00:00:27]} fxg4 {[%clk 00:00:49]} {[%emt 00:00:02]} 52. Bxg4 {[%clk 00:01:13]}
{[%emt 00:00:09]} Qxb3+ {[%clk 00:00:39]} {[%emt 00:00:20]} 53. Kg2 {[%clk
00:01:18]} {[%emt 00:00:06]} Qb2 {[%clk 00:00:30]} {[%emt 00:00:19]} 54. Bd1
{[%clk 00:01:10]} {[%emt 00:00:18]} b3 {[%clk 00:00:20]} {[%emt 00:00:21]} 55.
Qxd5 {[%clk 00:00:17]} {[%emt 00:01:02]} Bh4 {[%clk 00:00:28]} {[%emt
00:00:02]} 56. Qf3 {[%clk 00:00:25]} {[%emt 00:00:02]} Nf5 {[%clk 00:00:27]}
{[%emt 00:00:11]} 57. Be2 {[%clk 00:00:15]} {[%emt 00:00:21]} Bxf2 {[%clk
00:00:23]} {[%emt 00:00:14]} 58. Qxf2 {[%clk 00:00:21]} {[%emt 00:00:04]} Qd2
{[%clk 00:00:26]} {[%emt 00:00:06]} 59. Kf3 {[%clk 00:00:12]} {[%emt 00:00:20]}
Nxd4+ {[%clk 00:00:29]} {[%emt 00:00:07]} 0-1

[Event "NK 2022"]
[Site "Groningen, Netherlands"]
[Date "2022.12.30"]
[Round "19.1"]
[White "L'Ami, Erwin"]
[Black "Kevlishvili, Robby"]
[Result "1-0"]
[TimeControl "40/90; 30 minutes + increment 30 seconds from start"]
[WhiteTitle "GM"]
[BlackTitle "GM"]
[WhiteFideId "1007998"]
[BlackFideId "1040634"]
[WhiteElo "2627"]
[BlackElo "2530"]

1. d4 {[%clk 00:25:18]} Nf6 {[%clk 00:25:13]} {[%emt 00:00:08]} 2. c4 {[%clk
00:25:26]} {[%emt 00:00:02]} g6 {[%clk 00:25:01]} {[%emt 00:00:22]} 3. Nc3
{[%clk 00:25:27]} {[%emt 00:00:09]} Bg7 {[%clk 00:25:04]} {[%emt 00:00:07]} 4.
Nf3 {[%clk 00:25:09]} {[%emt 00:00:28]} O-O {[%clk 00:25:08]} {[%emt 00:00:06]}
5. g3 {[%clk 00:25:18]} {[%emt 00:00:02]} d6 {[%clk 00:25:03]} {[%emt
00:00:14]} 6. Bg2 {[%clk 00:25:26]} {[%emt 00:00:02]} Nbd7 {[%clk 00:25:08]}
{[%emt 00:00:06]} 7. O-O {[%clk 00:25:32]} {[%emt 00:00:04]} e5 {[%clk
00:25:03]} {[%emt 00:00:14]} 8. e4 {[%clk 00:25:38]} {[%emt 00:00:04]} exd4
{[%clk 00:25:00]} {[%emt 00:00:13]} 9. Nxd4 {[%clk 00:25:46]} {[%emt 00:00:02]}
a6 {[%clk 00:24:41]} {[%emt 00:00:30]} 10. h3 {[%clk 00:25:30]} {[%emt
00:00:26]} Ne5 {[%clk 00:23:51]} {[%emt 00:01:00]} 11. b3 {[%clk 00:24:48]}
{[%emt 00:00:53]} c5 {[%clk 00:23:43]} {[%emt 00:00:18]} 12. Nde2 {[%clk
00:23:56]} {[%emt 00:01:02]} Rb8 {[%clk 00:23:34]} {[%emt 00:00:20]} 13. f4
{[%clk 00:22:21]} {[%emt 00:01:44]} Nc6 {[%clk 00:23:32]} {[%emt 00:00:12]} 14.
Be3 {[%clk 00:22:00]} {[%emt 00:00:31]} Be6 {[%clk 00:22:30]} {[%emt 00:01:12]}
15. Qd2 {[%clk 00:20:53]} {[%emt 00:01:18]} Qc8 {[%clk 00:17:51]} {[%emt
00:04:49]} 16. Kh2 {[%clk 00:19:30]} {[%emt 00:01:32]} b5 {[%clk 00:16:53]}
{[%emt 00:01:09]} 17. cxb5 {[%clk 00:15:10]} {[%emt 00:04:30]} axb5 {[%clk
00:16:59]} {[%emt 00:00:04]} 18. f5 {[%clk 00:14:57]} {[%emt 00:00:22]} Bd7
{[%clk 00:15:57]} {[%emt 00:01:12]} 19. Qxd6 {[%clk 00:14:11]} {[%emt
00:00:56]} b4 {[%clk 00:14:11]} {[%emt 00:01:56]} 20. Nd5 {[%clk 00:12:39]}
{[%emt 00:01:42]} Nxd5 {[%clk 00:13:57]} {[%emt 00:00:24]} 21. exd5 {[%clk
00:12:45]} {[%emt 00:00:03]} Nd8 {[%clk 00:04:03]} {[%emt 00:10:04]} 22. f6
{[%clk 00:11:46]} {[%emt 00:01:09]} Nb7 {[%clk 00:04:02]} {[%emt 00:00:11]} 23.
Qf4 {[%clk 00:11:46]} {[%emt 00:00:09]} Bh8 {[%clk 00:04:10]} {[%emt 00:00:02]}
24. g4 {[%clk 00:11:22]} {[%emt 00:00:33]} Re8 {[%clk 00:04:11]} {[%emt
00:00:10]} 25. Ng3 {[%clk 00:11:13]} {[%emt 00:00:19]} Nd6 {[%clk 00:03:44]}
{[%emt 00:00:37]} 26. Qxd6 {[%clk 00:10:43]} {[%emt 00:00:39]} Rxe3 {[%clk
00:03:48]} {[%emt 00:00:06]} 27. Rae1 {[%clk 00:10:51]} {[%emt 00:00:02]} Rxe1
{[%clk 00:02:56]} {[%emt 00:01:03]} 28. Rxe1 {[%clk 00:10:59]} {[%emt
00:00:02]} Ra8 {[%clk 00:02:53]} {[%emt 00:00:14]} 29. Re7 {[%clk 00:08:40]}
{[%emt 00:02:28]} Be8 {[%clk 00:01:38]} {[%emt 00:01:25]} 30. Qe5 {[%clk
00:07:46]} {[%emt 00:01:03]} Kf8 {[%clk 00:00:44]} {[%emt 00:01:04]} 31. Ne4
{[%clk 00:06:51]} {[%emt 00:01:05]} 1-0